bitfinex-derivatives/quotes_SOLF0:USTF0_20260220
["timestamp","ask_amount","ask_price","bid_price","bid_amount"]
[1771588989493,8.98815777,83.64,83.567,8.4799278]
[1771588990192,10.7664,83.631,83.567,8.4799278]
[1771588990384,8.98815777,83.64,83.567,8.4799278]
[1771588990588,8.98815777,83.629,83.567,8.4799278]
[1771588991385,8.98815777,83.614,83.567,8.4799278]
[1771588991591,8.98815777,83.614,83.531,8.4799278]
[1771588992303,8.98815777,83.604,83.553,8.4799278]
[1771588992902,8.98815777,83.604,83.554,10.7762]
[1771588993294,8.98815777,83.604,83.553,8.4799278]
[1771588995498,8.730153,83.613,83.561,8.4799278]
[1771588995699,8.98815777,83.628,83.561,8.4799278]
[1771588996097,8.98815777,83.628,83.584,10.7724]
[1771589003203,8.86947618,83.644,83.55,9.8216602]
[1771589003204,8.98815777,83.643,83.592,8.4799278]
[1771589003806,10.7651,83.641,83.592,8.4799278]
[1771589004001,8.98815777,83.66,83.592,8.4799278]
[1771589004306,8.98815777,83.66,83.596,8.4799278]
[1771589004900,8.98815777,83.66,83.601,8.4799278]
[1771589005305,10.7637,83.652,83.601,8.4799278]
[1771589005701,8.98815777,83.651,83.571,8.4799278]
[1771589006504,10.7645,83.646,83.571,8.4799278]
[1771589006704,10.7645,83.646,83.585,8.4799278]
[1771589007307,8.98815777,83.651,83.593,8.4799278]
[1771589007308,10.7654,83.639,83.593,8.4799278]
[1771589008211,10.7663,83.632,83.593,8.4799278]
[1771589009312,8.98815777,83.645,83.593,8.4799278]
[1771589010418,8.98815777,83.643,83.593,8.4799278]
[1771589013718,8.98815777,83.643,83.595,10.7709]
[1771589015318,8.98815777,83.639,83.561,8.4799278]
[1771589015517,8.98815777,83.637,83.561,8.4799278]
[1771589015719,8.98815777,83.619,83.561,8.4799278]
[1771589015916,8.98815777,83.599,83.532,8.4799278]
[1771589016221,8.98815777,83.596,83.535,8.4799278]
[1771589016416,8.98815777,83.596,83.511,8.4799278]
[1771589016714,8.98815777,83.594,83.511,8.4799278]
[1771589016923,8.98815777,83.576,83.516,8.4799278]
[1771589017316,8.81927463,83.566,83.516,8.4799278]
[1771589017616,8.81927463,83.566,83.506,10.7824]
[1771589018215,8.81927463,83.559,83.501,8.31749465]
[1771589019820,8.81927463,83.559,83.505,8.31749465]
[1771589020922,10.776,83.556,83.505,8.31749465]
[1771589021119,19.59527463,83.556,83.505,8.31749465]
[1771589021420,8.81927463,83.555,83.505,8.31749465]
[1771589022816,9.80877556,83.58,83.47,71.80877556]
[1771589022817,8.81927463,83.571,83.507,8.31749465]
[1771589023016,18.62805019,83.58,83.507,8.31749465]
[1771589023217,8.81927463,83.58,83.511,8.31749465]
[1771589023420,8.81927463,83.58,83.52,8.31749465]
[1771589023820,8.81927463,83.58,83.523,10.7803]
[1771589024018,8.81927463,83.58,83.524,8.31749465]
[1771589025819,8.81927463,83.58,83.526,8.31749465]
[1771589026624,8.81927463,83.58,83.527,10.7796]
[1771589030819,8.81927463,83.58,83.535,10.7786]
[1771589031027,8.81927463,83.58,83.526,8.31749465]
[1771589032130,8.81927463,83.58,83.526,19.09739465]
[1771589032929,8.81927463,83.58,83.533,10.7789]
[1771589033428,8.81927463,83.58,83.526,8.31749465]
[1771589034330,8.81927463,83.578,83.526,8.31749465]
[1771589035728,8.81927463,83.573,83.526,8.31749465]
[1771589037527,19.59437463,83.563,83.513,10.7814]
[1771589037732,19.59437463,83.563,83.49,9.80877556]
[1771589037733,8.81927463,83.562,83.514,8.31749465]
[1771589038634,8.81927463,83.562,83.528,10.7796]
[1771589043036,8.81927463,83.579,83.535,10.7787]
[1771589043238,8.81927463,83.599,83.536,8.31749465]
[1771589043442,8.81927463,83.599,83.569,10.7743]
[1771589044241,8.81927463,83.619,83.569,10.7743]
[1771589044842,8.79681016,83.609,83.524,8.76517789]
[1771589045140,8.79681016,83.609,83.541,8.76517789]
[1771589046240,8.79681016,83.609,83.561,8.76517789]
[1771589047939,8.50809067,83.608,83.561,8.76517789]
[1771589049447,8.50809067,83.608,83.561,19.54057789]
[1771589049641,8.50809067,83.608,83.54,9.80877556]
[1771589049642,8.50809067,83.622,83.562,8.1313067]
[1771589050035,8.50809067,83.605,83.541,8.1313067]
[1771589051035,8.50809067,83.589,83.541,8.1313067]
[1771589051248,8.50809067,83.602,83.541,8.1313067]
[1771589051442,14.70117909,83.657,83.541,8.1313067]
[1771589051443,8.50809067,83.633,83.541,8.1313067]
[1771589051648,8.50809067,83.629,83.541,8.1313067]
[1771589051944,9.80877556,83.63,83.488,167.7638]
[1771589051945,8.50809067,83.601,83.558,8.1313067]
[1771589052247,8.50809067,83.601,83.521,8.1313067]
[1771589053645,8.50809067,83.597,83.542,8.1313067]
[1771589054249,8.50809067,83.597,83.553,10.7763]
[1771589055143,10.7724,83.585,83.542,8.1313067]
[1771589056839,3.66608278,83.59,83.542,8.1313067]
[1771589057852,3.66608278,83.59,83.544,8.1313067]
[1771589058350,8.50809067,83.587,83.544,8.1313067]
[1771589061248,8.50809067,83.587,83.546,10.7772]
[1771589064153,21.67139675,83.635,83.506,21.5648]
[1771589064154,12.17417345,83.6,83.559,8.1313067]
[1771589064551,8.50809067,83.599,83.559,8.1313067]
[1771589065747,3.66608278,83.58,83.531,8.1313067]
[1771589066351,3.66608278,83.58,83.538,10.7783]
[1771589069052,12.17417345,83.58,83.538,10.7783]
[1771589072054,12.1751282,83.58,83.538,10.7783]
[1771589072755,12.1751282,83.58,83.545,10.7774]
[1771589073153,8.50809067,83.58,83.545,10.7774]
[1771589075046,9.067e-05,83.58,83.541,8.1313067]
[1771589075246,3.66703753,83.59,83.541,8.1313067]
[1771589075659,3.66703753,83.59,83.557,10.7758]
[1771589076159,3.66703753,83.59,83.541,8.1313067]
[1771589076554,8.89760405,83.598,83.541,8.1313067]
[1771589076753,8.89760405,83.597,83.541,8.1313067]
[1771589076956,14.70117909,83.627,83.516,21.5622]
[1771589076957,10.7694,83.608,83.562,19.06169433]
[1771589077155,10.7694,83.608,83.5,35.9]
[1771589077156,8.89768564,83.607,83.563,8.28649433]
[1771589077460,3.66703753,83.62,83.582,10.7727]
[1771589077863,8.90017782,83.619,83.582,10.7727]
[1771589078057,8.90017782,83.618,83.582,10.7727]
[1771589078362,8.55421551,83.619,83.582,10.7727]
[1771589078659,8.55421551,83.619,83.534,21.5575]
[1771589078660,3.66703753,83.63,83.585,8.28649433]
[1771589078959,8.90135267,83.629,83.585,8.28649433]
[1771589079159,11.01386842,83.648,83.585,8.28649433]
[1771589079160,8.90112114,83.628,83.585,8.28649433]
[1771589079360,8.55421551,83.619,83.571,8.28649433]
[1771589079860,21.67139675,83.665,83.571,8.28649433]
[1771589079861,12.22125304,83.61,83.571,8.28649433]
[1771589080261,8.55421551,83.608,83.571,8.28649433]
[1771589080462,8.55421551,83.608,83.551,8.28649433]
[1771589080761,3.66703753,83.61,83.572,8.28649433]
[1771589081153,8.55421551,83.608,83.551,8.28649433]
[1771589081360,8.89810555,83.607,83.558,10.7757]
[1771589081563,8.55421551,83.608,83.558,19.06219433]
[1771589081763,8.89810213,83.607,83.558,19.06219433]
[1771589081968,8.55421551,83.608,83.558,19.06219433]
[1771589082159,17.4523176,83.607,83.558,19.06219433]
[1771589082358,8.55421551,83.607,83.558,19.06219433]
[1771589083166,8.9011289,83.606,83.558,19.06219433]
[1771589083366,8.55421551,83.607,83.558,19.06219433]
[1771589083762,8.9012391,83.606,83.558,19.06219433]
[1771589083963,8.55421551,83.589,83.545,8.28649433]
[1771589085768,8.55421551,83.588,83.545,19.06379433]
[1771589086662,8.55421551,83.588,83.559,10.7756]
[1771589086967,8.55421551,83.588,83.545,8.28649433]
[1771589087268,8.55421551,83.579,83.534,10.7787]
[1771589087464,3.66703753,83.57,83.53,8.28649433]
[1771589088167,3.66703753,83.59,83.541,8.28649433]
[1771589088467,8.88063905,83.589,83.541,8.28649433]
[1771589088669,8.88267829,83.608,83.574,8.28649433]
[1771589088863,8.88267829,83.607,83.574,8.28649433]
[1771589089067,8.88279769,83.606,83.574,8.28649433]
[1771589089269,8.88279769,83.605,83.574,8.28649433]
[1771589089562,3.66703753,83.61,83.574,8.28649433]
[1771589090162,8.87958586,83.609,83.574,8.28649433]
[1771589090362,8.8790477,83.608,83.561,8.28649433]
[1771589090563,8.8790477,83.607,83.561,8.28649433]
[1771589090762,8.8790477,83.606,83.561,8.28649433]
[1771589091057,8.8790477,83.605,83.561,8.28649433]
[1771589091263,8.8790477,83.604,83.561,8.28649433]
[1771589091463,8.55421551,83.609,83.561,8.28649433]
[1771589091665,8.87968668,83.608,83.561,8.28649433]
[1771589091869,8.55421551,83.598,83.548,8.28649433]
[1771589092174,17.43390219,83.597,83.548,8.28649433]
[1771589092468,8.87968668,83.596,83.548,8.28649433]
[1771589092670,8.87968668,83.595,83.548,8.28649433]
[1771589092872,8.87968668,83.594,83.548,8.28649433]
[1771589093070,10.771,83.596,83.548,8.28649433]
[1771589093271,8.87705728,83.595,83.548,8.28649433]
[1771589093467,8.87705728,83.594,83.548,8.28649433]
[1771589093669,10.771,83.596,83.548,8.28649433]
[1771589093872,8.87833776,83.595,83.548,8.28649433]
[1771589094072,8.87833776,83.594,83.548,8.28649433]
[1771589094261,10.771,83.596,83.548,8.28649433]
[1771589094570,10.7712,83.594,83.548,8.28649433]
[1771589095271,8.8786565,83.593,83.548,8.28649433]
[1771589095567,10.7712,83.594,83.548,8.28649433]
[1771589096374,10.7714,83.592,83.548,8.28649433]
[1771589097272,8.55421551,83.597,83.548,8.28649433]
[1771589098869,8.55421551,83.597,83.549,10.7768]
[1771589099071,8.55421551,83.597,83.55,8.28649433]
[1771589100475,8.55421551,83.597,83.553,8.28649433]
[1771589100974,8.55421551,83.589,83.553,8.28649433]
[1771589101176,8.55421551,83.589,83.514,21.5628]
[1771589101177,12.22125304,83.58,83.531,8.28649433]
[1771589101468,3.66703753,83.57,83.531,8.28649433]
[1771589101670,8.55421551,83.579,83.531,8.28649433]
[1771589101865,8.55421551,83.579,83.483,29.54886394]
[1771589101866,3.66703753,83.59,83.541,8.28649433]
[1771589102063,3.66703753,83.6,83.551,8.28649433]
[1771589102266,8.88775244,83.599,83.566,19.06119433]
[1771589102469,8.88775244,83.598,83.567,8.28649433]
[1771589102775,8.55421551,83.605,83.567,8.28649433]
[1771589102969,8.88873057,83.604,83.567,8.28649433]
[1771589103277,8.88873057,83.603,83.567,8.28649433]
[1771589103481,3.66703753,83.6,83.568,10.7745]
[1771589104473,8.13042544,83.618,83.569,8.38724734]
[1771589104677,10.7666,83.629,83.569,8.38724734]
[1771589104678,8.88836521,83.617,83.569,8.38724734]
[1771589104877,8.88836521,83.616,83.569,8.38724734]
[1771589105177,8.88836521,83.615,83.569,8.38724734]
[1771589105380,8.88836521,83.614,83.569,8.38724734]
[1771589105680,8.88836521,83.613,83.584,10.7723]
[1771589105874,8.88836521,83.612,83.584,10.7723]
[1771589106072,8.88836521,83.611,83.584,10.7723]
[1771589106377,3.66703753,83.62,83.584,10.7723]
[1771589106577,8.88676443,83.619,83.584,10.7723]
[1771589106779,8.88676443,83.618,83.584,10.7723]
[1771589107078,8.88676443,83.617,83.584,10.7723]
[1771589107276,8.88676443,83.616,83.584,10.7723]
[1771589107474,8.23760868,83.609,83.575,10.7735]
[1771589107673,3.66703753,83.6,83.556,8.7595549]
[1771589107875,3.66703753,83.59,83.556,8.7595549]
[1771589108574,3.66703753,83.6,83.556,8.7595549]
[1771589108778,3.66703753,83.6,83.566,10.7747]
[1771589109478,8.23760868,83.605,83.529,21.5588]
[1771589109479,3.66703753,83.61,83.57,8.7595549]
[1771589109674,8.88322652,83.609,83.57,8.7595549]
[1771589109978,8.23760868,83.618,83.57,8.7595549]
[1771589110178,8.88417492,83.617,83.57,8.7595549]
[1771589110379,8.88417492,83.616,83.57,8.7595549]
[1771589110568,8.88417492,83.615,83.57,8.7595549]
[1771589110767,8.88417492,83.614,83.572,19.5335549]
[1771589110978,8.88417492,83.613,83.572,19.5335549]
[1771589111175,3.66703753,83.6,83.559,8.7595549]
[1771589111375,14.43743753,83.6,83.559,8.7595549]
[1771589113579,3.66703753,83.6,83.559,8.7595549]
[1771589113783,10.7694,83.608,83.559,8.7595549]
[1771589113982,8.88111449,83.607,83.559,8.7595549]
[1771589114186,8.88111449,83.606,83.559,8.7595549]
[1771589114381,8.88111449,83.605,83.559,8.7595549]
[1771589114586,19.65101449,83.604,83.565,10.7748]
[1771589114787,8.88111449,83.603,83.565,10.7748]
[1771589115086,10.7699,83.604,83.565,10.7748]
[1771589115288,8.88151171,83.603,83.559,8.7595549]
[1771589115585,10.7699,83.604,83.559,8.7595549]
[1771589115793,8.88189876,83.603,83.559,8.7595549]
[1771589115986,10.7699,83.604,83.559,8.7595549]
[1771589116188,10.7707,83.598,83.559,8.7595549]
[1771589116989,3.66703753,83.6,83.559,8.7595549]
[1771589117589,11.12921047,83.622,83.462,219.82482048]
[1771589117590,8.23760868,83.589,83.546,8.7595549]
[1771589117783,3.66703753,83.58,83.546,8.7595549]
[1771589117982,8.23760868,83.589,83.546,8.7595549]
[1771589118181,3.66703753,83.6,83.546,8.7595549]
[1771589118383,8.88786856,83.599,83.546,8.7595549]
[1771589118686,3.66703753,83.6,83.546,8.7595549]
[1771589118881,8.88838829,83.599,83.546,8.7595549]
[1771589119088,3.66703753,83.61,83.558,8.7595549]
[1771589119390,8.8890463,83.609,83.558,8.7595549]
[1771589119586,8.8890463,83.608,83.558,8.7595549]
[1771589119889,8.8890463,83.607,83.558,8.7595549]
[1771589120084,8.8890463,83.606,83.558,8.7595549]
[1771589120286,8.8890463,83.605,83.558,8.7595549]
[1771589120484,8.8890463,83.604,83.558,8.7595549]
[1771589120684,8.8890463,83.603,83.563,10.775]
[1771589120884,8.8890463,83.602,83.563,10.775]
[1771589121179,11.90464621,83.61,83.563,19.5345549]
[1771589121385,8.88999593,83.609,83.563,19.5345549]
[1771589121581,3.66703753,83.6,83.563,19.5345549]
[1771589121980,3.66703753,83.6,83.567,10.7746]
[1771589124592,3.66703753,83.6,83.573,10.7738]
[1771589126093,3.66703753,83.6,83.564,8.7595549]
[1771589126395,3.66703753,83.6,83.566,10.7747]
[1771589126396,17.13117683,83.599,83.566,10.7747]
[1771589126597,8.89356815,83.598,83.566,10.7747]
[1771589126795,8.89356815,83.597,83.566,10.7747]
[1771589126994,8.89356815,83.596,83.566,10.7747]
[1771589127297,8.23760868,83.599,83.566,10.7747]
[1771589127497,8.89358474,83.598,83.566,10.7747]
[1771589127700,8.23760868,83.599,83.566,10.7747]
[1771589127701,8.89358474,83.597,83.566,10.7747]
[1771589127997,8.89358474,83.596,83.566,10.7747]
[1771589128198,8.89383034,83.595,83.566,10.7747]
[1771589128400,8.23760868,83.599,83.566,10.7747]
[1771589128601,8.8936387,83.598,83.566,10.7747]
[1771589128798,8.8936387,83.597,83.564,8.7595549]
[1771589128999,8.8936387,83.596,83.564,8.7595549]
[1771589129201,8.23760868,83.599,83.564,8.7595549]
[1771589129395,8.89099378,83.598,83.564,8.7595549]
[1771589129592,8.89099378,83.597,83.564,8.7595549]
[1771589129795,8.89099378,83.596,83.564,8.7595549]
[1771589129995,8.23760868,83.599,83.564,8.7595549]
[1771589130205,8.8920003,83.598,83.564,8.7595549]
[1771589130500,8.8920003,83.597,83.564,8.7595549]
[1771589130701,8.8920003,83.596,83.564,8.7595549]
[1771589130908,8.8920003,83.595,83.564,8.7595549]
[1771589131208,8.23760868,83.589,83.55,8.7595549]
[1771589132208,8.23760868,83.589,83.552,10.7765]
[1771589133304,8.23760868,83.589,83.507,21.5646]
[1771589133305,3.66703753,83.61,83.566,8.7595549]
[1771589133501,14.70117909,83.624,83.504,233.18016394]
[1771589133502,2.872e-05,83.609,83.571,8.7595549]
[1771589133807,14.43223753,83.64,83.594,8.7595549]
[1771589134004,14.42738916,83.64,83.594,8.7595549]
[1771589134613,8.23760868,83.639,83.594,8.7595549]
[1771589134808,8.23760868,83.619,83.584,10.7723]
[1771589135004,8.23760868,83.619,83.569,8.7595549]
[1771589136711,8.23760868,83.619,83.574,10.7737]
[1771589137011,3.66218916,83.61,83.574,10.7737]
[1771589138307,8.23760868,83.619,83.574,10.7737]
[1771589138503,3.66218916,83.63,83.585,8.7409169]
[1771589139609,3.66218916,83.63,83.58,3.66218916]
[1771589139610,14.42878916,83.63,83.586,8.7409169]
[1771589140816,10.7675,83.622,83.586,8.7409169]
[1771589141917,12.43878978,83.62,83.578,10.7731]
[1771589142317,12.43878978,83.62,83.578,19.5140169]
[1771589143416,8.77660062,83.619,83.578,10.7731]
[1771589144720,3.66218916,83.61,83.569,10.7742]
[1771589144919,12.43878978,83.61,83.569,10.7742]
[1771589145114,8.77660062,83.609,83.569,10.7742]
[1771589146521,3.66218916,83.6,83.569,10.7742]
[1771589146813,8.77660062,83.608,83.569,10.7742]
[1771589149717,8.77660062,83.608,83.576,10.7734]
[1771589149916,3.66218916,83.62,83.576,19.5143169]
[1771589150113,8.77660062,83.621,83.526,21.5597]
[1771589150114,8.85148119,83.619,83.577,8.7409169]
[1771589150319,8.77660062,83.621,83.587,10.7719]
[1771589150521,3.66218916,83.63,83.587,10.7719]
[1771589150719,8.85196278,83.629,83.587,10.7719]
[1771589150911,8.85196278,83.628,83.587,10.7719]
[1771589151116,8.85196278,83.627,83.587,10.7719]
[1771589151317,3.66218916,83.62,83.587,10.7719]
[1771589151517,8.77660062,83.628,83.587,10.7719]
[1771589151714,8.85128316,83.627,83.587,10.7719]
[1771589151914,8.85128316,83.626,83.587,10.7719]
[1771589152124,3.66218916,83.62,83.587,10.7719]
[1771589152320,8.77660062,83.618,83.576,10.7733]
[1771589152525,3.66218916,83.61,83.576,10.7733]
[1771589153725,3.66218916,83.6,83.568,10.7745]
[1771589154123,8.77660062,83.609,83.565,8.7409169]
[1771589155027,8.77660062,83.609,83.571,10.774]
[1771589155327,3.66218916,83.62,83.572,8.7409169]
[1771589155528,8.84970451,83.619,83.573,8.7409169]
[1771589155727,8.84970451,83.618,83.573,8.7409169]
[1771589155927,8.84970451,83.617,83.573,8.7409169]
[1771589156128,8.84970451,83.616,83.573,8.7409169]
[1771589156427,8.84970451,83.615,83.573,8.7409169]
[1771589156628,3.66218916,83.62,83.573,8.7409169]
[1771589157630,10.768,83.619,83.573,8.7409169]
[1771589157825,3.66218916,83.63,83.576,8.7409169]
[1771589158130,8.85101972,83.629,83.576,8.7409169]
[1771589158325,8.85101972,83.629,83.57,3.66218916]
[1771589158326,8.85101972,83.628,83.591,8.7409169]
[1771589158532,19.54240062,83.636,83.591,8.7409169]
[1771589158723,8.85083442,83.635,83.591,8.7409169]
[1771589158931,8.85083442,83.634,83.591,8.7409169]
[1771589159129,8.85083442,83.633,83.591,8.7409169]
[1771589159430,19.61713442,83.632,83.593,19.5121169]
[1771589159629,8.85083442,83.631,83.593,19.5121169]
[1771589159830,10.7663,83.632,83.593,8.7409169]
[1771589160030,10.7668,83.628,83.593,8.7409169]
[1771589160532,10.7659,83.635,83.593,8.7409169]
[1771589161228,8.77660062,83.636,83.594,10.7711]
[1771589161935,8.77660062,83.636,83.594,19.5120169]
[1771589162229,3.66218916,83.64,83.598,8.7409169]
[1771589162431,8.84725787,83.639,83.598,8.7409169]
[1771589162736,3.66218916,83.66,83.601,8.7409169]
[1771589163037,8.8484347,83.659,83.611,8.7409169]
[1771589163234,8.8484347,83.658,83.611,8.7409169]
[1771589163426,8.8484347,83.657,83.611,8.7409169]
[1771589163625,8.8484347,83.656,83.611,8.7409169]
[1771589163830,8.8484347,83.655,83.614,8.7409169]
[1771589164031,3.66218916,83.66,83.614,8.7409169]
[1771589164433,3.66218916,83.66,83.616,10.7682]
[1771589164937,12.24386587,83.66,83.616,10.7682]
[1771589166931,8.84439309,83.666,83.625,8.18483842]
[1771589167129,11.12921047,83.693,83.625,8.18483842]
[1771589167130,3.66218916,83.68,83.63,3.66218916]
[1771589167339,3.66218916,83.68,83.631,8.18483842]
[1771589168239,8.74411437,83.686,83.631,8.18483842]
[1771589168838,3.66218916,83.68,83.641,10.765]
[1771589169141,11.12921047,83.716,83.584,21.5447]
[1771589169142,8.74411437,83.669,83.618,8.18483842]
[1771589169346,8.74411437,83.669,83.621,8.18483842]
[1771589170445,10.7617,83.668,83.621,8.18483842]
[1771589170840,3.66218916,83.66,83.621,8.18483842]
[1771589171045,8.74411437,83.659,83.607,8.18483842]
[1771589171639,8.74411437,83.659,83.6,3.66218916]
[1771589171640,10.763,83.658,83.609,18.95393842]
[1771589172840,10.763,83.658,83.61,3.66218916]
[1771589173241,10.763,83.658,83.611,10.7689]
[1771589173944,8.74411437,83.657,83.611,10.7689]
[1771589174336,8.74411437,83.657,83.618,10.7679]
[1771589175144,8.74411437,83.657,83.61,11.84702758]
[1771589175744,8.74411437,83.657,83.611,10.7689]
[1771589177847,8.74411437,83.655,83.611,10.7689]
[1771589179442,8.74411437,83.655,83.618,10.768]
[1771589179645,8.74411437,83.68,83.621,8.18483842]
[1771589179843,8.74411437,83.679,83.621,8.18483842]
[1771589180241,10.7604,83.678,83.635,10.7657]
[1771589180848,10.7604,83.678,83.629,8.18483842]
[1771589181148,3.66218916,83.68,83.631,8.18483842]
[1771589181543,3.66218916,83.68,83.64,8.18483842]
[1771589182148,3.66218916,83.69,83.64,8.18483842]
[1771589182848,3.66218916,83.69,83.642,8.18483842]
[1771589183345,10.7589,83.689,83.642,8.18483842]
[1771589184352,3.66218916,83.68,83.642,8.18483842]
[1771589185750,3.66218916,83.67,83.629,8.18483842]
[1771589185950,3.66218916,83.66,83.611,8.18483842]
[1771589186652,3.66218916,83.66,83.617,10.7681]
[1771589186839,3.66218916,83.66,83.618,8.18483842]
[1771589187453,10.763,83.658,83.618,8.18483842]
[1771589189151,3.66218916,83.65,83.618,8.18483842]
[1771589190450,10.7641,83.649,83.618,8.18483842]
[1771589191356,8.74411437,83.658,83.618,8.18483842]
[1771589191656,3.66218916,83.65,83.618,8.18483842]
[1771589193456,10.7615,83.669,83.619,8.18483842]
[1771589193655,10.7615,83.669,83.621,8.18483842]
[1771589193853,3.65853474,83.68,83.621,8.18483842]
[1771589194054,8.74411437,83.688,83.643,8.18483842]
[1771589194854,3.65853474,83.68,83.643,8.18483842]
[1771589195060,3.65853474,83.68,83.644,10.7646]
[1771589196457,3.65853474,83.68,83.645,8.18483842]
[1771589196658,3.65853474,83.68,83.648,10.7641]
[1771589197051,3.65853474,83.68,83.645,8.18483842]
[1771589197355,3.65853474,83.67,83.621,8.48372571]
[1771589197556,3.65853474,83.66,83.621,8.48372571]
[1771589197757,3.65853474,83.66,83.631,10.7664]
[1771589198360,7.96210045,83.676,83.637,10.7655]
[1771589198361,3.65853474,83.67,83.637,10.7655]
[1771589198554,3.65853474,83.67,83.633,8.48372571]
[1771589198757,3.65853474,83.67,83.636,8.48372571]
[1771589198959,11.08020536,83.712,83.636,8.48372571]
[1771589198960,3.65853474,83.68,83.636,8.48372571]
[1771589200360,3.65853474,83.66,83.621,8.48372571]
[1771589200561,3.65853474,83.65,83.621,8.48372571]
[1771589203763,3.65853474,83.66,83.621,8.48372571]
[1771589205366,10.7629,83.659,83.621,8.48372571]
[1771589206154,3.65853474,83.65,83.612,8.48372571]
[1771589208060,3.65853474,83.65,83.616,8.48372571]
[1771589208262,7.96210045,83.658,83.616,8.48372571]
[1771589208663,3.65853474,83.65,83.616,8.48372571]
[1771589209467,3.65853474,83.66,83.616,8.48372571]
[1771589209762,10.7638,83.651,83.601,8.48372571]
[1771589209967,3.65853474,83.66,83.559,27.4338827]
[1771589209968,3.65853474,83.62,83.588,8.48372571]
[1771589210168,3.65853474,83.63,83.588,8.48372571]
[1771589211768,3.65853474,83.62,83.588,8.48372571]
[1771589212768,3.65853474,83.62,83.589,10.7717]
[1771589213165,7.96210045,83.646,83.591,8.48372571]
[1771589213768,7.96210045,83.646,83.59,3.65853474]
[1771589213769,7.96210045,83.646,83.608,8.48372571]
[1771589213963,3.65853474,83.65,83.608,8.48372571]
[1771589214363,3.65853474,83.65,83.613,8.48372571]
[1771589214664,3.65853474,83.66,83.613,8.48372571]
[1771589215762,3.65853474,83.66,83.622,10.7675]
[1771589216066,3.65853474,83.65,83.613,8.48372571]
[1771589216269,3.65853474,83.65,83.621,10.7676]
[1771589217671,7.96210045,83.659,83.621,10.7676]
[1771589218761,3.65853474,83.65,83.621,10.7676]
[1771589220069,7.96210045,83.649,83.601,8.48372571]
[1771589220271,3.65853474,83.64,83.601,8.48372571]
[1771589220771,3.65853474,83.63,83.588,8.48372571]
[1771589221271,14.70117909,83.675,83.56,21.551]
[1771589221272,3.65853474,83.62,83.574,8.48372571]
[1771589221466,3.65853474,83.63,83.583,8.48372571]
[1771589222066,3.65853474,83.64,83.604,8.48372571]
[1771589222472,3.65853474,83.65,83.604,8.48372571]
[1771589222875,7.96210045,83.663,83.616,8.48372571]
[1771589222876,3.65853474,83.66,83.616,8.48372571]
[1771589223675,3.65853474,83.66,83.616,19.25192571]
[1771589223874,3.65853474,83.66,83.617,8.48372571]
[1771589224780,3.65853474,83.66,83.619,7.96641339]
[1771589224985,3.65853474,83.67,83.621,7.96641339]
[1771589225780,3.65853474,83.67,83.63,10.7665]
[1771589227079,3.65853474,83.67,83.623,7.96641339]
[1771589227280,8.26323409,83.669,83.623,7.96641339]
[1771589227878,3.65853474,83.66,83.623,7.96641339]
[1771589228383,3.65853474,83.65,83.601,8.30200503]
[1771589229784,3.65853474,83.65,83.605,10.7696]
[1771589230784,3.65853474,83.65,83.601,8.30200503]
[1771589230785,10.7645,83.646,83.601,8.30200503]
[1771589231491,10.7645,83.646,83.602,10.7701]
[1771589231991,11.92176883,83.65,83.602,19.07210503]
[1771589232186,11.92176883,83.65,83.605,10.7697]
[1771589232390,11.92176883,83.65,83.606,8.30200503]
[1771589233392,11.92176883,83.65,83.609,10.7692]
[1771589235393,11.92176883,83.65,83.6,3.65853474]
[1771589235394,8.26323409,83.649,83.601,10.7702]
[1771589236290,3.65853474,83.64,83.601,10.7702]
[1771589236992,8.26323409,83.649,83.615,10.7684]
[1771589237200,8.26323409,83.649,83.602,8.30200503]
[1771589238796,8.26323409,83.649,83.608,10.7693]
[1771589239095,8.26323409,83.649,83.602,8.30200503]
[1771589239393,3.65853474,83.64,83.602,8.30200503]
[1771589242192,3.65853474,83.64,83.603,10.7698]
[1771589242694,8.26323409,83.647,83.607,8.30200503]
[1771589243594,14.42253474,83.65,83.6,3.65853474]
[1771589243595,3.65853474,83.65,83.61,8.30200503]
[1771589243799,8.797708,83.658,83.61,8.30200503]
[1771589243998,10.7628,83.659,83.61,8.30200503]
[1771589244200,8.79783226,83.658,83.61,8.30200503]
[1771589244498,8.79783226,83.657,83.61,8.30200503]
[1771589244698,8.79783226,83.656,83.619,10.7679]
[1771589244899,10.7628,83.659,83.619,10.7679]
[1771589245089,8.79961391,83.658,83.619,10.7679]
[1771589245295,8.79961391,83.657,83.612,8.30200503]
[1771589245595,10.7628,83.659,83.612,8.30200503]
[1771589245596,8.79961391,83.656,83.612,8.30200503]
[1771589245796,10.7628,83.659,83.613,19.07060503]
[1771589245996,8.8025945,83.658,83.614,8.30200503]
[1771589246201,19.02503409,83.667,83.62,3.65853474]
[1771589246499,8.26323409,83.667,83.631,10.7662]
[1771589246698,17.06802711,83.679,83.632,8.30200503]
[1771589246902,8.80479302,83.678,83.632,8.30200503]
[1771589247096,8.80479302,83.677,83.632,8.30200503]